bitfinex-derivatives/quotes_BTCF0:USTF0_20250117
["timestamp","ask_amount","ask_price","bid_price","bid_amount"]
[1737118409363,0.898577,102940.0,102930.0,0.72879898]
[1737118411056,0.04857,102950.0,102940.0,0.048573]
[1737118411253,0.048569,102960.0,102940.0,0.49999198]
[1737118411458,0.048569,102960.0,102950.0,0.49998898]
[1737118412062,0.898569,102960.0,102950.0,0.49998898]
[1737118412264,0.17479494,102970.0,102950.0,0.54855398]
[1737118412457,0.048564,102970.0,102960.0,0.49998298]
[1737118413261,0.588564,102970.0,102960.0,0.49998298]
[1737118413654,0.588564,102970.0,102960.0,0.43198297]
[1737118414358,0.048564,102970.0,102960.0,0.43198297]
[1737118415464,0.048564,102970.0,102960.0,0.65188297]
[1737118419968,0.048564,102970.0,102960.0,0.41686399]
[1737118420269,0.048564,102970.0,102960.0,0.50748297]
[1737118421268,0.13918298,102970.0,102960.0,0.36829999]
[1737118421770,0.048564,102970.0,102960.0,0.36829999]
[1737118422067,0.13918298,102970.0,102960.0,0.29279999]
[1737118422267,0.588565,102960.0,102950.0,0.3608]
[1737118424272,0.588565,102960.0,102950.0,0.49998898]
[1737118424667,0.048565,102960.0,102950.0,0.49998898]
[1737118425975,0.048565,102960.0,102950.0,0.45141898]
[1737118426662,0.048565,102960.0,102950.0,0.49998898]
[1737118432879,0.048565,102960.0,102950.0,0.40937]
[1737118433179,0.048565,102960.0,102950.0,0.3608]
[1737118433880,0.048565,102960.0,102950.0,0.45141898]
[1737118434177,0.048565,102960.0,102950.0,0.3608]
[1737118434378,0.13918398,102960.0,102950.0,0.3608]
[1737118434578,0.28828398,102960.0,102950.0,0.3608]
[1737118435673,0.197665,102960.0,102950.0,0.3608]
[1737118435875,0.737665,102960.0,102950.0,0.49998898]
[1737118437277,0.048565,102960.0,102950.0,0.49998898]
[1737118440778,0.22335994,102960.0,102950.0,0.49998898]
[1737118443783,0.76335994,102960.0,102950.0,0.49998898]
[1737118446886,0.76335994,102960.0,102950.0,0.86078898]
[1737118449086,0.76335994,102960.0,102950.0,0.86382645]
[1737118454382,0.588565,102960.0,102950.0,0.86382645]
[1737118454690,0.588565,102960.0,102950.0,0.86382639]
[1737118454885,0.588565,102960.0,102950.0,0.77320741]
[1737118455092,0.588565,102960.0,102950.0,0.86382639]
[1737118455693,0.588565,102960.0,102950.0,1.09507503]
[1737118455996,0.588565,102960.0,102950.0,1.09507519]
[1737118456892,0.588565,102960.0,102950.0,1.09507517]
[1737118457092,0.588565,102960.0,102950.0,1.00445619]
[1737118457297,0.76335994,102960.0,102950.0,0.77017]
[1737118457797,0.76335994,102960.0,102950.0,0.77320758]
[1737118458695,0.76335994,102960.0,102950.0,0.77320767]
[1737118459498,0.76335994,102960.0,102950.0,0.72463767]
[1737118460185,0.76335994,102960.0,102950.0,0.7216]
[1737118460595,0.76335994,102960.0,102950.0,0.77017]
[1737118461398,0.76335994,102960.0,102950.0,0.7216]
[1737118462096,0.67918398,102960.0,102950.0,0.3608]
[1737118462700,0.13918398,102960.0,102950.0,0.3608]
[1737118463397,0.18775298,102960.0,102950.0,0.3608]
[1737118464097,0.54855298,102960.0,102940.0,0.3608]
[1737118464291,0.90028898,102950.0,102940.0,0.3608]
[1737118465101,0.80967,102950.0,102940.0,0.409375]
[1737118465393,0.80967,102950.0,102940.0,0.49999398]
[1737118466598,0.80967,102950.0,102940.0,0.409375]
[1737118468893,0.80967,102950.0,102940.0,0.3608]
[1737118469294,0.98429543,102950.0,102940.0,0.3608]
[1737118470000,1.07491441,102950.0,102940.0,0.3608]
[1737118470690,0.048575,102940.0,102930.0,0.3608]
[1737118470890,0.13919398,102940.0,102930.0,0.36383818]
[1737118471091,0.13919398,102940.0,102930.0,0.3608]
[1737118471506,0.04858,102930.0,102920.0,0.73124862]
[1737118471706,0.04858,102930.0,102920.0,0.73428714]
[1737118472009,0.04858,102930.0,102920.0,0.5030385]
[1737118472302,0.04858,102930.0,102920.0,0.50303851]
[1737118472496,0.04858,102930.0,102920.0,0.49999998]
[1737118472697,0.04858,102930.0,102920.0,0.50303845]
[1737118473010,0.04858,102930.0,102920.0,0.50303844]
[1737118475206,0.58858,102930.0,102920.0,0.50303844]
[1737118475406,0.58858,102930.0,102920.0,0.41241946]
[1737118475807,0.58858,102930.0,102920.0,0.49999998]
[1737118476008,0.58858,102930.0,102920.0,0.50303842]
[1737118476311,0.58858,102930.0,102920.0,0.409381]
[1737118476905,0.58858,102930.0,102920.0,0.49999998]
[1737118477404,0.04858,102930.0,102920.0,0.49999998]
[1737118478013,0.22320543,102930.0,102920.0,0.49999998]
[1737118478717,0.22320543,102930.0,102920.0,0.50303834]
[1737118479213,0.04858,102930.0,102920.0,0.50303834]
[1737118479408,0.04858,102930.0,102920.0,0.50303828]
[1737118480617,0.06136921,102940.0,102920.0,0.55162228]
[1737118480822,0.29349943,102950.0,102940.0,0.048575]
[1737118481710,0.29349943,102950.0,102940.0,0.13919398]
[1737118482615,0.29349943,102950.0,102940.0,0.21099398]
[1737118482805,0.29349943,102950.0,102940.0,0.57179398]
[1737118483606,0.22319943,102950.0,102940.0,0.57179398]
[1737118484004,0.22319943,102950.0,102940.0,0.64579398]
[1737118484216,0.76319943,102950.0,102940.0,0.64579398]
[1737118487521,0.76319943,102950.0,102940.0,0.194375]
[1737118488120,0.588574,102950.0,102940.0,0.194375]
[1737118488821,0.588574,102950.0,102940.0,0.204375]
[1737118489526,0.76319943,102950.0,102940.0,0.204375]
[1737118489819,0.76319943,102950.0,102940.0,0.565175]
[1737118490007,0.22319943,102950.0,102940.0,0.058575]
[1737118491816,0.58399943,102950.0,102940.0,0.01]
[1737118492121,0.58399943,102950.0,102920.0,0.76151164]
[1737118492122,0.04858,102930.0,102920.0,0.23124864]
[1737118492321,0.95141796,102930.0,102920.0,0.23124864]
[1737118492521,1.02731796,102930.0,102920.0,0.23124864]
[1737118492826,0.048584,102920.0,102910.0,0.28892352]
[1737118493124,0.048589,102910.0,102900.0,0.1]
[1737118494423,0.13920798,102910.0,102900.0,0.1]
[1737118494926,0.50000798,102910.0,102900.0,0.1]
[1737118495315,0.59400798,102910.0,102900.0,0.1]
[1737118495618,0.68930798,102910.0,102900.0,0.1]
[1737118498226,0.048599,102890.0,102880.0,0.66601898]
[1737118498421,0.048599,102890.0,102880.0,0.5754]
[1737118498726,0.048599,102890.0,102880.0,0.166]
[1737118498727,0.409399,102890.0,102880.0,0.166]
[1737118499025,0.50001798,102890.0,102880.0,0.166]
[1737118501318,0.048603,102880.0,102870.0,0.09735806]
[1737118501520,0.50002198,102880.0,102870.0,0.09735806]
[1737118501725,0.50002198,102880.0,102870.0,0.00145806]
[1737118502225,0.59272198,102880.0,102870.0,0.00145806]
[1737118502522,0.59272198,102880.0,102860.0,0.048611]
[1737118502727,0.048608,102870.0,102860.0,0.409411]
[1737118503025,0.048608,102870.0,102860.0,0.50002998]
[1737118503222,0.048604,102880.0,102870.0,0.048605]
[1737118503419,0.0486,102890.0,102870.0,0.54203796]
[1737118503615,0.0486,102890.0,102880.0,0.68322198]
[1737118504029,0.9880251,102900.0,102890.0,0.048599]
[1737118504030,0.94600212,102900.0,102890.0,0.048599]
[1737118504224,0.94600212,102900.0,102890.0,0.13921798]
[1737118504531,0.771796,102900.0,102890.0,0.048599]
[1737118506724,0.771796,102900.0,102890.0,0.409399]
[1737118508725,0.771796,102900.0,102890.0,0.34139899]
[1737118508933,0.771796,102900.0,102890.0,0.38999799]
[1737118509433,0.771796,102900.0,102890.0,0.34139899]
[1737118509623,0.86241498,102900.0,102890.0,0.34139899]
[1737118512535,0.86241498,102900.0,102880.0,0.77492098]
[1737118512730,0.048599,102890.0,102880.0,0.77492098]
[1737118514529,0.54,102900.0,102880.0,0.77492098]
[1737118514737,0.588594,102900.0,102890.0,0.50001798]
[1737118517031,0.54,102900.0,102890.0,0.50001798]
[1737118517431,0.588594,102900.0,102890.0,0.50001798]
[1737118518539,0.588594,102900.0,102890.0,0.409399]
[1737118518841,0.588594,102900.0,102890.0,0.50001798]
[1737118521543,0.588594,102900.0,102890.0,0.409399]
[1737118521746,0.588594,102900.0,102890.0,0.13921798]
[1737118521934,0.048594,102900.0,102890.0,0.048599]
[1737118522731,0.048594,102900.0,102890.0,0.50001798]
[1737118524334,0.588594,102900.0,102890.0,0.50001798]
[1737118525442,0.22279812,102910.0,102900.0,0.048594]
[1737118525647,0.22279812,102910.0,102900.0,0.13921298]
[1737118526048,0.22279812,102910.0,102900.0,0.50001298]
[1737118526349,0.22279812,102910.0,102900.0,0.13921298]
[1737118526567,0.22279812,102910.0,102900.0,0.048594]
[1737118526739,0.22279812,102910.0,102900.0,0.409394]
[1737118527950,0.048592,102910.0,102900.0,0.409394]
[1737118528450,0.048592,102910.0,102900.0,0.048594]
[1737118528948,0.22279812,102910.0,102900.0,0.048594]
[1737118529743,0.048595,102900.0,102890.0,0.50001798]
[1737118529948,0.048595,102900.0,102890.0,0.67258138]
[1737118531053,0.048595,102900.0,102890.0,0.50001798]
[1737118531247,0.048595,102900.0,102890.0,0.13921798]
[1737118531444,0.048595,102900.0,102890.0,0.50001798]
[1737118531950,0.048595,102900.0,102890.0,0.13921798]
[1737118532156,0.048595,102900.0,102890.0,0.50001798]
[1737118532346,0.22280112,102900.0,102890.0,0.50001798]
[1737118532852,0.22280112,102900.0,102890.0,0.13921798]
[1737118533043,0.22280112,102900.0,102890.0,0.50001798]
[1737118533855,0.76280112,102900.0,102890.0,0.50001798]
[1737118536758,0.76280112,102900.0,102890.0,0.50305737]
[1737118537757,0.588595,102900.0,102890.0,0.67562077]
[1737118539447,0.588595,102900.0,102890.0,0.67562074]
[1737118541569,0.588595,102900.0,102890.0,0.67562077]
[1737118542263,0.76280112,102900.0,102890.0,0.67562077]
[1737118543462,0.588595,102900.0,102890.0,0.67562077]
[1737118544365,0.76280112,102900.0,102890.0,0.67562077]
[1737118545577,0.76280112,102900.0,102890.0,0.67562072]
[1737118546874,0.76280112,102900.0,102890.0,0.68048363]
[1737118547065,0.76280112,102900.0,102890.0,0.67562072]
[1737118547265,0.71420612,102900.0,102890.0,0.68048361]
[1737118547462,0.54203796,102900.0,102890.0,0.00790223]
[1737118547773,0.048599,102890.0,102880.0,0.28892352]
[1737118547963,0.70681798,102890.0,102880.0,0.28892352]
[1737118548671,0.70681798,102890.0,102880.0,0.33752752]
[1737118548868,0.70681798,102890.0,102880.0,0.22251505]
[1737118548869,0.8810241,102890.0,102880.0,0.22251505]
[1737118550568,0.42960512,102890.0,102880.0,0.58331505]
[1737118550776,0.42960512,102890.0,102880.0,0.67393403]
[1737118551161,0.255399,102890.0,102880.0,0.67393403]
[1737118551870,0.255399,102890.0,102880.0,0.58331505]
[1737118552366,0.255399,102890.0,102880.0,0.22251505]
[1737118552573,0.42960512,102890.0,102880.0,0.048604]
[1737118553471,0.42960512,102890.0,102870.0,0.58477309]
[1737118553668,0.588604,102880.0,102870.0,0.67539207]
[1737118554364,0.588604,102880.0,102870.0,0.58477309]
[1737118554572,0.588604,102880.0,102870.0,0.67539207]
[1737118555776,0.588604,102880.0,102870.0,0.58477309]
[1737118558473,0.67922298,102880.0,102870.0,0.58477309]
[1737118559674,0.67922298,102880.0,102870.0,0.413902]
[1737118560565,0.67922298,102880.0,102870.0,0.58781305]
[1737118560765,0.67922298,102880.0,102870.0,0.58477309]
[1737118561974,0.67922298,102880.0,102870.0,0.22397309]
[1737118562276,0.588604,102880.0,102870.0,0.22397309]
[1737118563376,0.588604,102880.0,102870.0,0.05006204]
[1737118564472,0.67922298,102880.0,102870.0,0.05006204]
[1737118565073,0.588604,102880.0,102870.0,0.41086204]
[1737118565568,0.588604,102880.0,102870.0,0.50148102]
[1737118566872,0.54,102880.0,102870.0,0.50148102]
[1737118567070,0.54,102880.0,102870.0,0.77829207]
[1737118569581,0.588604,102880.0,102870.0,0.77829207]
[1737118569769,0.588604,102880.0,102870.0,0.78133188]
[1737118569970,0.588604,102880.0,102870.0,0.78133185]
[1737118570371,0.54,102880.0,102870.0,0.87195075]
[1737118570770,0.54,102880.0,102870.0,0.78133177]
[1737118570971,0.54,102880.0,102870.0,0.78619496]
[1737118571176,0.54,102880.0,102870.0,0.78133177]
[1737118571380,0.54,102880.0,102870.0,0.78619494]
[1737118571585,0.22280312,102900.0,102890.0,0.048599]
[1737118571879,0.22280312,102900.0,102890.0,0.409399]
[1737118573980,0.3134221,102900.0,102890.0,0.41243845]
[1737118574180,0.3134221,102900.0,102890.0,0.409399]
[1737118574576,0.3134221,102900.0,102890.0,0.41243845]
[1737118574777,0.3134221,102900.0,102890.0,0.409399]
[1737118574977,0.3134221,102900.0,102890.0,0.41243845]
[1737118575279,0.22280312,102900.0,102890.0,0.41243845]
[1737118575675,0.048597,102900.0,102890.0,0.41243845]
[1737118576685,0.048597,102900.0,102890.0,0.409399]
[1737118578081,0.22280312,102900.0,102890.0,0.409399]
[1737118579088,0.048597,102900.0,102890.0,0.409399]
[1737118582878,0.22280312,102900.0,102890.0,0.409399]
[1737118587481,0.28235525,102900.0,102890.0,0.46895113]
[1737118589386,0.28235525,102900.0,102890.0,0.47199057]
[1737118589585,0.28235525,102900.0,102890.0,0.41243844]
[1737118590087,0.10814913,102900.0,102890.0,0.41243844]
[1737118590283,0.10814913,102900.0,102890.0,0.409399]
[1737118590485,0.15674513,102900.0,102880.0,1.09791928]
[1737118590688,0.05955213,102890.0,102880.0,1.10095887]
[1737118590983,0.048599,102890.0,102880.0,1.10095887]
[1737118591383,0.048599,102890.0,102880.0,0.86933772]
[1737118591893,0.588599,102890.0,102880.0,0.86933772]
[1737118592887,0.588599,102890.0,102880.0,0.86933768]
[1737118593993,0.588599,102890.0,102880.0,1.10095883]
[1737118594587,0.588599,102890.0,102880.0,1.10095895]
[1737118595187,0.691999,102890.0,102880.0,1.10095895]
[1737118595387,0.691999,102890.0,102880.0,0.8693378]
[1737118595589,0.75155113,102890.0,102880.0,0.58635272]
[1737118595783,0.75155113,102890.0,102880.0,0.22555272]
[1737118595995,0.85975113,102890.0,102880.0,0.22555272]
[1737118596195,0.85975113,102890.0,102880.0,0.22555286]
[1737118596385,1.03395725,102890.0,102880.0,0.00303981]
[1737118596592,1.08256025,102890.0,102880.0,0.00303986]
[1737118596794,0.54256025,102890.0,102880.0,0.00303986]
[1737118597084,0.60211238,102890.0,102870.0,0.81639424]
[1737118597399,0.64815813,102880.0,102870.0,0.81943414]
[1737118597585,0.64815813,102880.0,102870.0,0.41003014]
[1737118597785,0.70771026,102880.0,102870.0,0.23611909]
[1737118597990,1.00895813,102880.0,102870.0,0.23307919]
[1737118598192,1.06851026,102880.0,102870.0,0.23162115]
[1737118598492,0.04861,102870.0,102860.0,0.28892352]
[1737118598691,0.68826213,102870.0,102860.0,0.29196403]
[1737118599094,0.68826213,102870.0,102860.0,0.28892352]
[1737118599291,0.62871,102870.0,102860.0,0.28892352]
[1737118599494,0.71953253,102870.0,102860.0,0.17380022]
[1737118601199,0.048613,102860.0,102850.0,0.3608]
[1737118601498,0.13943553,102860.0,102850.0,0.3608]
[1737118602091,0.67943553,102860.0,102850.0,0.3608]
[1737118603195,0.67943553,102860.0,102850.0,0.409418]
[1737118603396,0.67943553,102860.0,102850.0,0.3608]
[1737118604595,0.67943553,102860.0,102840.0,0.61532]
[1737118604596,0.048618,102850.0,102840.0,0.61532]
[1737118604897,0.13944053,102850.0,102840.0,0.04862]
[1737118605106,0.24534053,102850.0,102840.0,0.40942]
[1737118609818,0.24534053,102850.0,102840.0,0.3608]
[1737118610319,0.25577109,102850.0,102840.0,0.3608]
[1737118611823,0.79577109,102850.0,102840.0,0.3608]
[1737118612319,0.048622,102840.0,102830.0,0.37178144]
[1737118612521,0.13944453,102840.0,102830.0,0.37178144]
[1737118612912,0.23026706,102840.0,102820.0,0.42006962]
[1737118613118,0.13944953,102830.0,102820.0,0.409431]
[1737118613323,0.048627,102830.0,102820.0,0.409431]
[1737118613620,0.048627,102830.0,102820.0,0.50025353]
[1737118614522,0.048627,102830.0,102820.0,0.409431]
[1737118616222,0.13944953,102830.0,102820.0,0.409431]
[1737118618319,0.13944953,102830.0,102820.0,0.3608]
[1737118619023,0.24664953,102830.0,102820.0,0.3608]
[1737118619921,0.25735812,102830.0,102820.0,0.3608]
[1737118621919,0.048633,102820.0,102810.0,0.734634]
[1737118622126,0.13945553,102820.0,102810.0,0.734634]
[1737118622328,0.67945553,102820.0,102810.0,0.734634]
[1737118623231,0.588633,102820.0,102810.0,0.734634]
[1737118625530,0.64827642,102820.0,102810.0,0.79731917]
[1737118625925,0.70791984,102820.0,102810.0,0.73767575]
[1737118626129,0.64827642,102820.0,102810.0,0.73767575]
[1737118626520,0.64827642,102820.0,102810.0,0.79731917]
[1737118628331,0.588633,102820.0,102810.0,0.79731917]
[1737118630429,0.588633,102820.0,102810.0,0.79731896]
[1737118631834,0.22283112,102840.0,102810.0,0.85696238]
[1737118632037,0.17420612,102840.0,102830.0,0.46907142]
[1737118632335,0.71420612,102840.0,102830.0,0.47211296]
[1737118632536,0.54,102840.0,102830.0,0.78611249]
[1737118633239,0.588623,102840.0,102830.0,0.78611249]
[1737118633534,0.588623,102840.0,102830.0,0.8173047]
[1737118634234,0.588623,102840.0,102830.0,0.82217038]
[1737118634630,0.588623,102840.0,102830.0,0.73133475]
[1737118634835,0.588623,102840.0,102830.0,0.82217038]
[1737118635232,0.54,102840.0,102830.0,0.82217038]
[1737118635536,0.22282512,102850.0,102840.0,0.048623]
[1737118635736,0.22282512,102850.0,102840.0,0.41246407]
[1737118635752,0.31366075,102850.0,102840.0,0.41246407]
[1737118635929,0.31366075,102850.0,102840.0,0.00304107]
[1737118636129,0.24195463,102850.0,102840.0,0.00304107]
[1737118636329,0.60275463,102850.0,102840.0,0.00304107]
[1737118636542,0.048623,102840.0,102830.0,0.17380022]
[1737118636744,0.24565863,102840.0,102830.0,0.17684155]
[1737118637036,0.69729426,102840.0,102830.0,0.17684155]
[1737118637237,0.79829426,102840.0,102830.0,0.17380022]
[1737118637439,0.048628,102830.0,102820.0,0.53460022]
[1737118637631,0.13946363,102830.0,102820.0,0.53764179]
[1737118639632,0.13946363,102830.0,102820.0,0.36384157]
[1737118639829,0.048628,102830.0,102820.0,0.41247457]
[1737118641235,0.048628,102830.0,102820.0,0.50817636]
[1737118641437,0.048628,102830.0,102820.0,0.5033102]
[1737118641938,0.588628,102830.0,102820.0,0.41247457]
[1737118642344,0.67946363,102830.0,102820.0,0.41247457]
[1737118642633,0.67946363,102830.0,102820.0,0.36384159]
[1737118642939,0.77946363,102830.0,102820.0,0.17705707]
[1737118643337,1.14026363,102830.0,102820.0,0.17401548]
[1737118643542,0.77946363,102830.0,102820.0,0.17401548]
[1737118643946,1.14026363,102830.0,102820.0,0.17401548]
[1737118644243,0.048633,102820.0,102810.0,0.42435048]
[1737118644538,0.13946863,102820.0,102810.0,0.42435048]
[1737118644937,0.048633,102820.0,102810.0,0.42435048]
[1737118645139,0.048633,102820.0,102810.0,0.42739235]
[1737118647237,0.048633,102820.0,102810.0,0.42435048]
[1737118647634,0.13946863,102820.0,102810.0,0.42435048]
[1737118647838,0.13946863,102820.0,102810.0,0.17401548]
[1737118648333,0.24146863,102820.0,102810.0,0.17401548]
[1737118649139,0.34376863,102820.0,102810.0,0.17401548]
[1737118649344,0.048637,102810.0,102800.0,0.32265448]
[1737118649551,0.13947263,102810.0,102800.0,0.32569657]
[1737118650043,0.13947263,102810.0,102800.0,0.68649657]
[1737118650446,0.13947263,102810.0,102800.0,0.51248109]
[1737118650740,0.048637,102810.0,102800.0,0.51248109]
[1737118651339,0.048637,102810.0,102800.0,0.60331672]
[1737118651539,0.048633,102820.0,102810.0,0.048637]
[1737118651734,0.588633,102820.0,102810.0,0.8213144]
[1737118651947,0.048633,102820.0,102810.0,0.8213144]
[1737118652443,0.588633,102820.0,102810.0,0.8213144]
[1737118652838,0.588633,102820.0,102810.0,0.82131427]
[1737118654342,0.588633,102820.0,102810.0,0.81827263]
[1737118654850,0.588633,102820.0,102810.0,0.727437]
[1737118655351,0.588633,102820.0,102810.0,0.90448827]
[1737118655945,0.67946863,102820.0,102810.0,0.90144663]
[1737118656344,0.67946863,102820.0,102810.0,0.727437]
[1737118656941,0.588633,102820.0,102810.0,0.727437]
[1737118657552,0.588633,102820.0,102810.0,0.81827263]
[1737118657755,0.588633,102820.0,102810.0,0.727437]
[1737118658451,0.67946863,102820.0,102810.0,0.727437]
[1737118660455,0.67946863,102820.0,102810.0,0.366637]
[1737118660755,0.588633,102820.0,102810.0,0.727437]
[1737118660954,0.67946863,102820.0,102810.0,0.727437]
[1737118662257,0.588633,102820.0,102810.0,0.727437]
[1737118664053,0.588633,102820.0,102810.0,0.90144958]
[1737118664457,0.588633,102820.0,102810.0,0.90449128]
[1737118665050,0.588633,102820.0,102810.0,0.99532691]
[1737118665454,0.588633,102820.0,102810.0,1.05333137]
[1737118665858,0.65314922,102840.0,102810.0,1.144167]
[1737118666060,0.42116945,102840.0,102830.0,0.048628]
[1737118667260,0.42116945,102840.0,102830.0,0.22282936]
[1737118668464,0.24641991,102840.0,102830.0,0.22282936]
[1737118669360,0.24641991,102840.0,102830.0,0.22587073]
[1737118670167,0.24641991,102840.0,102830.0,0.22282936]
[1737118673169,0.42116945,102840.0,102830.0,0.048628]
[1737118673573,0.42116945,102840.0,102830.0,0.409428]
[1737118673866,0.42116945,102840.0,102830.0,0.048628]
[1737118675466,0.42116945,102840.0,102830.0,0.409428]
[1737118679172,0.42116945,102840.0,102830.0,0.048628]
[1737118679471,0.048628,102830.0,102820.0,0.59400546]
[1737118679666,0.048628,102830.0,102820.0,0.59704679]
[1737118680777,0.048628,102830.0,102820.0,0.82906383]
[1737118681069,0.048628,102830.0,102820.0,0.82906372]
[1737118681370,0.048628,102830.0,102820.0,0.91989935]
[1737118681772,0.048628,102830.0,102820.0,0.74569799]
[1737118684676,0.048628,102830.0,102820.0,0.74569793]
[1737118685377,0.59008528,102840.0,102830.0,0.048628]
[1737118685581,0.59008528,102840.0,102830.0,0.409428]
[1737118685767,0.68092091,102840.0,102830.0,0.409428]
[1737118686770,0.68092091,102840.0,102830.0,0.41246914]
[1737118686971,0.68092091,102840.0,102830.0,0.58647855]
[1737118687178,0.59008528,102840.0,102830.0,0.5864784]
[1737118687968,0.59008528,102840.0,102830.0,0.81849544]
[1737118688779,0.59008528,102840.0,102830.0,0.81849543]
[1737118689476,0.59008528,102840.0,102830.0,0.64448602]
[1737118690275,0.68092091,102840.0,102830.0,0.64448602]
[1737118690472,0.14092091,102840.0,102830.0,0.64448602]
[1737118690668,0.25002091,102840.0,102830.0,0.64144504]
[1737118691374,0.27844984,102840.0,102830.0,0.28064504]
[1737118691774,0.27844984,102840.0,102830.0,0.58354155]
[1737118693475,0.25005541,102840.0,102830.0,0.58354155]
[1737118695289,0.25005541,102840.0,102830.0,0.409428]
[1737118697481,0.25005541,102840.0,102830.0,0.3608]
[1737118698490,0.29868141,102840.0,102820.0,0.58354255]
[1737118698784,0.13949713,102830.0,102820.0,0.58354255]
[1737118699390,0.048627,102830.0,102820.0,0.58658403]
[1737118702088,0.048627,102830.0,102820.0,0.64448752]
[1737118702278,0.588627,102830.0,102820.0,0.64448752]
[1737118703087,0.588627,102830.0,102820.0,0.64448745]
[1737118703594,0.68968529,102830.0,102820.0,0.64448745]
[1737118706399,0.68968529,102830.0,102820.0,0.64448753]
[1737118707091,0.68968529,102830.0,102820.0,0.64448746]
[1737118707797,0.59881516,102830.0,102820.0,0.64448746]
[1737118709192,0.59881516,102830.0,102820.0,0.28368746]
[1737118709397,0.59881516,102830.0,102820.0,0.64448746]
[1737118709703,0.59881516,102830.0,102820.0,0.64448749]
[1737118709889,0.68968529,102830.0,102820.0,0.64448749]
[1737118710893,0.51048529,102830.0,102820.0,0.23201704]
[1737118711090,0.71578529,102830.0,102820.0,0.4062093]
[1737118712903,0.53001282,102830.0,102820.0,0.53499226]
[1737118713400,0.23384269,102830.0,102820.0,0.59463284]
[1737118713590,0.22365453,102830.0,102820.0,0.70290542]
[1737118713790,0.048627,102830.0,102820.0,0.70594695]
[1737118713992,0.048627,102830.0,102820.0,0.64630637]
[1737118714704,0.048627,102830.0,102820.0,0.70413115]
[1737118714893,0.048627,102830.0,102820.0,0.76377173]
[1737118715397,0.048627,102830.0,102820.0,0.73534639]
[1737118717003,0.048627,102830.0,102820.0,0.73230486]
[1737118718089,0.22365453,102830.0,102820.0,0.67444878]
[1737118718489,0.22365453,102830.0,102820.0,0.67749022]
[1737118719800,0.22365453,102830.0,102820.0,0.67749016]
[1737118721309,0.18678968,102840.0,102820.0,0.9095072]
[1737118721499,0.22511081,102840.0,102830.0,0.70818382]
[1737118721699,0.22511081,102840.0,102830.0,0.81518382]
[1737118721894,0.22511081,102840.0,102830.0,0.724328]
[1737118722395,0.22511081,102840.0,102830.0,0.89848896]
[1737118722598,0.22511081,102840.0,102830.0,0.90152996]
[1737118723392,0.22511081,102840.0,102830.0,0.89848896]
[1737118724205,0.22511081,102840.0,102830.0,0.90152995]
[1737118725416,0.31596663,102840.0,102830.0,0.90152995]
[1737118725609,0.31596663,102840.0,102830.0,0.90152994]
[1737118726401,0.1409391,102840.0,102830.0,1.13354698]
[1737118728605,0.23179492,102840.0,102830.0,0.61711898]
[1737118728810,0.23179492,102840.0,102830.0,0.406178]
[1737118729504,0.1409391,102840.0,102830.0,0.406178]
[1737118730413,0.1409391,102840.0,102830.0,0.17416096]
[1737118732216,0.588628,102830.0,102820.0,0.40943]
[1737118732518,0.67948382,102830.0,102820.0,0.40943]
[1737118733321,0.85438198,102830.0,102820.0,0.40943]
[1737118737417,0.82316174,102830.0,102820.0,0.46906558]
[1737118739122,0.76352616,102830.0,102820.0,0.47210695]
[1737118740024,0.76352616,102830.0,102820.0,0.53174253]
[1737118740213,0.22352616,102830.0,102820.0,0.53174253]
[1737118740614,0.048628,102830.0,102820.0,0.76375957]
[1737118740814,0.82461902,102840.0,102830.0,0.048628]
[1737118741014,0.82461902,102840.0,102830.0,0.67236358]
[1737118741413,0.82461902,102840.0,102830.0,0.6754049]
[1737118741820,0.64972086,102840.0,102830.0,0.84952718]
[1737118742009,0.59008528,102840.0,102830.0,0.84952716]
[1737118742214,0.59008528,102840.0,102830.0,0.95182716]
[1737118743022,0.05008528,102840.0,102830.0,0.95182716]
[1737118743523,0.59008528,102840.0,102830.0,0.95182716]
[1737118743713,0.59008528,102840.0,102830.0,0.95669291]
[1737118744114,0.54145928,102840.0,102830.0,0.95669291]
[1737118744316,0.54145928,102840.0,102830.0,1.18870995]
[1737118744811,0.54,102840.0,102830.0,1.18870995]
[1737118745116,0.22351916,102850.0,102830.0,1.18870995]
[1737118745428,0.22351916,102850.0,102840.0,0.46905858]
[1737118745625,0.82315474,102850.0,102840.0,0.4720995]
[1737118745830,0.64825658,102850.0,102840.0,0.4720995]
[1737118747024,0.64825658,102850.0,102840.0,0.64615257]
[1737118747218,0.64825658,102850.0,102840.0,0.64311165]
[1737118748229,0.82315474,102850.0,102840.0,0.46905858]
[1737118748526,0.82315474,102850.0,102840.0,0.409423]
[1737118750127,0.92585474,102850.0,102840.0,0.409423]
[1737118755726,0.75095658,102850.0,102840.0,0.58347607]
[1737118756825,0.75095658,102850.0,102840.0,0.64311165]
[1737118757924,0.75095658,102850.0,102840.0,0.58347607]
[1737118758428,0.75095658,102850.0,102840.0,0.64311165]
[1737118758625,0.75095658,102850.0,102840.0,0.58347607]
[1737118759017,0.75095658,102850.0,102840.0,0.64311165]
[1737118759223,0.75095658,102850.0,102840.0,0.58347607]
[1737118760722,0.75095658,102850.0,102840.0,0.58651701]
[1737118762431,0.75095658,102850.0,102840.0,0.58347607]
[1737118762629,0.91279216,102850.0,102840.0,0.17405307]
[1737118762939,0.91279216,102850.0,102830.0,0.7967261]
[1737118762940,0.048623,102840.0,102830.0,0.7967261]
[1737118763125,0.10825858,102840.0,102830.0,0.79976718]
[1737118763527,0.16789416,102840.0,102830.0,0.59646718]
[1737118763723,0.16789416,102840.0,102830.0,0.5934261]
[1737118764239,0.52869416,102840.0,102830.0,0.17405307]
[1737118765538,0.048632,102820.0,102810.0,0.62836949]
[1737118765830,0.10826758,102820.0,102810.0,0.62836949]
[1737118767032,0.16790316,102820.0,102810.0,0.62836949]
[1737118767234,0.16790316,102820.0,102810.0,0.52796949]
[1737118767932,0.10826758,102820.0,102810.0,0.52796949]
[1737118768137,0.28306886,102820.0,102810.0,0.52796949]
[1737118769926,0.34270444,102820.0,102810.0,0.52796949]
[1737118770136,0.34270444,102820.0,102810.0,0.42106949]
[1737118770322,0.34270444,102820.0,102810.0,0.53935343]
[1737118770323,0.16790316,102820.0,102810.0,0.53935343]
[1737118771326,0.16790316,102820.0,102810.0,0.53631175]
[1737118772331,0.16790316,102820.0,102810.0,0.64458433]
[1737118772332,0.048632,102820.0,102810.0,0.64458433]
[1737118772537,0.048632,102820.0,102810.0,0.85072591]
[1737118773739,0.048632,102820.0,102810.0,1.08278253]
[1737118774326,0.048632,102820.0,102810.0,1.08278238]
[1737118774832,0.74596658,102830.0,102820.0,0.048632]